Workbook

Sheet Лист1
B3: УТВЕРЖДЕНО
B4: Начальник Управления образования Исполнительного комитета муниципального образования города Казани
B7: ________________________И.А.Ризванов
B8: (подпись)
B10: СМЕТА
B11: доходов и расходов, по средствам, полученным от предпринимательской и иной приносящей доход деятельности на 2022 год
A14: Учреждение | B14: МАДОУ "Детский сад № 157 комбинированного вида" Приволжского района г.Казани
A15: Адрес
A16: Периодичность: годовая
A17: Индивидуальная (общая)
A18: Министерство, ведомство | B18: 821
A19: Раздел, подраздел | B19: 0701
A20: Целевая статья | B20: 0210342000
A21: Вид расходов | B21: 111,112,113,119,244,853,852,247
A22: Доп.КР | B22: 591,593,521,523,509,595
A23: Доп.ФК
A24: Единица измерения: | B24: руб.
A27: Наименование статьи | D27: Сумма
A28: 1.ДОХОДЫ
A29: Остаток средств на начало года | B29: Код дохода | D29: =SUM(D30:H36) -> 17,591.78
A30: Доходы, от операционной аренды | B30: 82100000000000000121
A31: Доходы от оказания платных услуг | B31: 82100000000000000131 | D31: 17,591.78
A32: Доходы от оказания услуг - родплата пришкольные лагеря | B32: 82100000000000004131
A33: Доходы от компенсации затрат | B33: 82100000000000000134
A34: Доходы по условным арендным платежам (от компенсации затрат на коммунальные услуги) | B34: 82100000000000000135
A35: Доход от возмещения ФСС расходов | B35: 82100000000000000139
A36: Иные доходы (гранты, добровольные пожертвования) | B36: 82100000000000000155
A37: Поступления текущего года | D37: =SUM(D38:H43) -> 1,480,000.00
A38: Доходы, от операционной аренды | B38: 82100000000000000121
A39: Доходы от оказания платных услуг | B39: 82100000000000000131 | D39: 1,000,000.00
A40: Доходы от оказания услуг - родплата пришкольные лагеря | B40: 82100000000000004131
A41: Доходы от компенсации затрат (охрана) | B41: 82100000000000000134 | D41: 480,000.00
A42: Доходы по условным арендным платежам (от компенсации затрат на коммунальные услуги) | B42: 82100000000000000135
A43: Иные доходы (гранты, добровольные пожертвования) | B43: 82100000000000000155
A44: Всего доходов | D44: =D37+D29 -> 1,497,591.78
D45: Доп КР
A46: 2. Расходы | B46: КОСГУ, ДопЭК | C46: Сумма итого | D46: 509 | E46: 591 | F46: 593 | G46: 595 | H46: 521 | I46: 523
A47: Заработная плата | B47: 211 | C47: =SUM(D47:I47) -> 589,548.22 | D47: =SUM(D48:D49) -> 13,511.35 | E47: =SUM(E48:E49) -> 0.00 | F47: =SUM(F48:F49) -> 0.00 | H47: =SUM(H48:H49) -> 576,036.87 | I47: =SUM(I48:I49) -> 0.00
A48: - заработная плата педагогического персонала | B48: П211004 | C48: =SUM(D48:I48) -> 510,094.86 | D48: 13,511.35 | H48: 496,583.51
A49: - заработная плата вспомогательного персонала | B49: П211005 | C49: 79,453.36 | H49: 79,453.36
A50: Прочие выплаты | B50: 212 | C50: 0.00 | D50: =SUM(D51:D51) -> 0.00 | E50: =SUM(E51:E51) -> 0.00 | F50: =SUM(F51:F51) -> 0.00 | H50: =SUM(H51) -> 0.00 | I50: =SUM(I51:I51) -> 0.00
A51: - суточные работникам (сотрудникам) при служебных командировках (кроме водителей) | B51: П212006 | C51: 0.00
A52: Начисления на выплаты по заработной плате | B52: 213 | C52: 178,043.56 | D52: =SUM(D53:D54) -> 4,080.43 | E52: =SUM(E53:E54) -> 0.00 | F52: =SUM(F53:F54) -> 0.00 | H52: =SUM(H53:H54) -> 173,963.13 | I52: =SUM(I53:I54) -> 0.00
A53: - начисления на заработную плату педагогического персонала | B53: П213004 | C53: 154,048.65 | D53: 4,080.43 | H53: 149,968.22
A54: - начисления на заработную плату вспомогательного персонала | B54: П213005 | C54: 23,994.91 | H54: 23,994.91
A55: Услуги связи | B55: 221 | C55: 0.00 | D55: =SUM(D56:D60) -> 0.00 | E55: =SUM(E56:E60) -> 0.00 | F55: =SUM(F56:F60) -> 0.00 | H55: =SUM(H56:H60) -> 0.00 | I55: =SUM(I56:I60) -> 0.00
A56: -услуги телефонной связи | B56: П221001 | C56: 0.00
A57: -плата за предоставление доступа к телефонной связи и Интернет(разовый) | B57: П221002 | C57: 0.00
A58: -услуги сотовой связи связи | B58: П221010 | C58: 0.00
A59: -плата за услуги сети Интернет | B59: П221012 | C59: 0.00
A60: -прочие услуги связи (радио, а/я) | B60: П221099 | C60: 0.00
A61: Транспортные услуги | B61: 222 | C61: 0.00 | D61: =SUM(D62:D62) -> 0.00 | E61: =SUM(E62:E62) -> 0.00 | F61: =SUM(F62:F62) -> 0.00 | H61: =SUM(H62) -> 0.00 | I61: =SUM(I62:I62) -> 0.00
A62: - прочие транспортные услуги | B62: П222099 | C62: 0.00
A63: Коммунальные услуги | B63: 223 | C63: 11,362.00 | D63: =SUM(D64:D67) -> 0.00 | E63: =SUM(E64:E67) -> 0.00 | F63: =SUM(F64:F67) -> 0.00 | H63: =SUM(H64:H67) -> 11,362.00 | I63: =SUM(I64:I67) -> 0.00
A64: - электроснабжение | B64: П223001 | C64: 9,136.00 | H64: 9,136.00
A65: - теплоснабжение | B65: П223002 | C65: 0.00
A66: - водоснабжение | B66: П223004 | C66: 2,226.00 | H66: 2,226.00
A67: - оплата договоров на вывоз твердых коммунальных отходов с региональным оператором | B67: П223017 | C67: 0.00
A68: Арендная плата за пользование имуществом | B68: 224 | C68: 0.00 | D68: =SUM(D69:D70) -> 0.00 | E68: 0.00 | F68: 0.00 | G68: 0.00 | H68: 0.00 | I68: 0.00
A69: - Аренда помещений | B69: П224001 | C69: 0.00
A70: - прочие расходы по арендной лате за пользование имуществом | B70: П224099 | C70: 0.00
A71: Работы, услуги по содержанию имущества | B71: 225 | C71: 46,800.06 | D71: =SUM(D72:D91) -> 0.00 | E71: 0.00 | F71: 0.00 | G71: 0.00 | H71: 46,800.06 | I71: 0.00
A72: - обслуживание охранной и пожарной сигнализации | B72: П225001 | C72: 0.00
A73: - содержание в чистоте помещений, зданий, дворов, иного имущества (озеленение, уборка и вывоз снега ,мусора, отходов, утилизация мусора (ТБО), дератизация, дезинфекция, дезинсекция, газация, санитарно-гигиеническое обслуживание, мойка и чистка (химчистка) | B73: П225002 | C73: 0.00
A74: - проведение работ по ремонту и восстановлению эффективности функционирования коммунальных инженерных систем и коммуникаций, осуществляемые сверх регламентированного условиями поставки коммунальных услуг перечня работ (технологических нужд) | B74: П225003 | C74: 0.00
A75: - обеспечение функционирования и поддержки (восстановление) работоспособности объектов нефинансовых активов | B75: П225004 | C75: 0.00
A76: - зарплата внештатных сотрудников | B76: П225005 | C76: 0.00
A77: - текущий ремонт зданий, сооружений | B77: Н225007 | C77: 0.00
A78: - ТО и ремонт аппаратного обеспечения (оргтехника, мед.оборудования, комп.техника и т.д.), включающее контроль тех.состояния | B78: П225010 | C78: 0.00
A79: - тех обслуживание транспортных средств | B79: П225011 | C79: 0.00
A80: - ремонт транспортных средств | B80: П225012 | C80: 0.00
A81: - тех осмотр транспортных средств | B81: П225013 | C81: 0.00
A82: - содержание трансп.средств (мойка и тд) | B82: П225014 | C82: 0.00
A83: - расходы на ТО и ремонт оборудования (торговое, кухонное, офисное, лифты и т.п.) | B83: П225015 | C83: 24,800.06 | H83: 24,800.06
A84: - содержание в чистоте имущества, кроме недвижимого | B84: П225016 | C84: 0.00
A85: - ТО приборов учета | B85: П225035 | C85: 0.00
A86: - противопожарные мероприятия (огнезащитная обработка чердачных перекрытий, замеры сопротивления изоляции, зарядка огнетушителей, опрессовка проводов) | B86: П225036 | C86: 7,000.00 | H86: 7,000.00
A87: - содержание и ремонт объектов озеленения | B87: П225037 | C87: 0.00
A88: -расходы по валке и обрезке зеленных насаждений в муниципальных учреждениях образования | B88: П225040 | C88: 0.00
A89: -вывоз мусора (ТБО) для учреждений СКС | B89: П225050 | C89: 0.00
A90: - прочие первоочередные расходы по работам, услугам по содержанию имущества | B90: П225098 | C90: 15,000.00 | H90: 15,000.00
A91: - прочие работы, услуги по содержанию имущества | B91: Н225099 | C91: 0.00
A92: Прочие работы, услуги | B92: 226 | C92: 608,215.44 | D92: =SUM(D93:D112) -> 0.00 | E92: 0.00 | F92: 0.00 | G92: 0.00 | H92: 128,215.44 | I92: 480,000.00
A93: - подписка | B93: П226001 | C93: 20,000.00 | H93: 20,000.00
A94: - зарплата внештатных сотрудников | B94: П226002 | C94: 0.00
A95: - организация питания | B95: П226003 | C95: 0.00
A96: - услуги охраны образовательных учредений ЧОП | B96: П226050 | C96: 480,000.00 | I96: 480,000.00
A97: -приобретение неисключительных прав на программное обеспечение | B97: П226010 | C97: 0.00
A98: -приобретение и обновление справочно-информационных баз данных (Гарант, Консультант и др) | B98: П226013 | C98: 37,215.44 | H98: 37,215.44
A99: - прочие расходы в области информационно-коммуникационных технологий в тч разработка программного обеспечения … | B99: П226015 | C99: 0.00
A100: -разработка схем территориального планирования, планировка территорий | B100: Н226019 | C100: 0.00
A101: - типографские работы, услуги | B101: Н226022 | C101: 0.00
A102: - размещение объявлений, рекламы в СМИ, расходы на теле-радиопрограммы | B102: Н226023 | C102: 0.00
A103: - возмещение расходов и оплата по проживанию в жилых помещениях (найм жилого помещения) при служебных командировках | B103: П226024 | C103: 0.00
A104: - услуги адвокатов, нотариусов, переводчиков, экспертов, инкассаторов | B104: П226025 | C104: 0.00
A105: - проведение инвентаризации, паспортизации основных средств | B105: П226027 | C105: 0.00
A106: -оплата медосмотра | B106: П226031 | C106: 0.00
A107: -возмещение работникам расходов по проезду при служебных командировках | B107: П226042 | C107: 0.00
A108: -компенсация расходов на проживание в жилых помещениях спортсменам и студентам при направлении их на различного рода мероприятия | B108: П226043 | C108: 0.00
A109: -компенсация расходов по проезду спортсменам и студентам при направлении их на различного рода мероприятия | B109: П226044 | C109: 0.00
A110: - за участие в семинарах, совещаниях, конференциях, курсах повышения квалификации, проф. обучение, за образовательные услуги, организация и проведение совещаний, конкурсов, олимпиад, выставок, мероприятий, конференций, соревнований, экскурсий | B110: П226052 | C110: 5,000.00 | H110: 5,000.00
A111: - прочие первоочередные расходы по прочим работам, услуам | B111: П226098 | C111: 0.00
A112: - прочие работы, услуги | B112: Н226099 | C112: =SUM(D112:I112) -> 66,000.00 | H112: 66,000.00
A113: Страхование | B113: 227 | C113: 0.00 | D113: =SUM(D114:D115) -> 0.00 | E113: 0.00 | F113: 0.00 | G113: 0.00 | H113: 0.00 | I113: 0.00
A114: -услуги по страхованию (за искл.ОСАГО, КАСКО) | B114: П227001 | C114: 0.00
A115: -услуги по страхованию транспорных средств (ОСАГО, КАСКО) | B115: П227002 | C115: 0.00
A116: Услуги, работы для целей капитальных вложений | B116: 228 | C116: 0.00 | D116: =SUM(D117:D118) -> 0.00 | E116: 0.00 | F116: 0.00 | G116: 0.00 | H116: 0.00 | I116: 0.00
A117: - установка и монтаж локальных вычислительных сетей, систем охранной и пожарной сигнализации, видеонаблюдения, контроля доступа | B117: П228005 | C117: 0.00
A118: - монтажные и пуско-наладочные работы поставляемых технических средств в области информационно-коммуникационных технологий | B118: Н228016 | C118: 0.00
A119: Социальные пособия и компенсация персоналу в денежном виде | B119: 266 | C119: 0.00 | D119: =SUM(D120) -> 0.00 | E119: =SUM(E120) -> 0.00 | F119: =SUM(F120) -> 0.00 | H119: =SUM(H120) -> 0.00 | I119: =SUM(I120) -> 0.00
A120: - прочие пособия | B120: П266099 | C120: 0.00
A121: Налоги, пошлины и сборы | B121: 291 | C121: 0.00 | D121: =SUM(D122:D124) -> 0.00 | E121: =SUM(E122:E124) -> 0.00 | F121: =SUM(F122:F124) -> 0.00 | H121: =SUM(H122:H124) -> 0.00 | I121: =SUM(I122:I124) -> 0.00
A122: - прочие налоги, в т.ч.госпошлины (за исключением налогов по школьным автобусам) | B122: П291005 | C122: 0.00
A123: -транспортный налог | B123: П291015 | C123: 0.00
A124: -налог по УСН | B124: П291025 | C124: 0.00
A125: Штрафы за нарушение законодательства о налогах и сборах, законодательства о страховых взносах | B125: 292 | C125: 8,000.00 | D125: =SUM(D126) -> 0.00 | E125: =SUM(E126) -> 0.00 | F125: =SUM(F126) -> 0.00 | H125: =SUM(H126) -> 8,000.00 | I125: =SUM(I126) -> 0.00
A126: - штрафы, пени и другие экономические санкции | B126: П292003 | C126: 8,000.00 | H126: 8,000.00
A127: Другие экономические санкции | B127: 295 | C127: 0.00 | D127: =SUM(D128:D128) -> 0.00 | E127: 0.00 | F127: 0.00 | G127: 0.00 | H127: =SUM(H128) -> 0.00 | I127: 0.00
A128: - штрафы, пени и другие экономические санкции | B128: П295003 | C128: 0.00
A129: Увеличение стоимости основных средств | B129: 310 | C129: 29,188.40 | D129: =SUM(D130:D133) -> 0.00 | E129: 0.00 | F129: 0.00 | G129: 0.00 | H129: 29,188.40 | I129: 0.00
A130: - приобретение огнетушителей | B130: П310001 | C130: 0.00
A131: -приобретение автоматизированных рабочих мест, серверного и тп оборудования | B131: Н310004 | C131: 0.00
A132: -прочие первоочередные расходы по увеличению стоимости основных средств | B132: П310098 | C132: 0.00
A133: -прочие расходы по увеличению стоимости основных средств | B133: Н310099 | C133: 29,188.40 | H133: =19188.4+10000 -> 29,188.40
A134: Увеличение стоимости лекартсвенных препаратов и материалов, применяемых в медицинских целях | B134: 341 | C134: 0.00 | D134: =SUM(D135) -> 0.00 | E134: =SUM(E135) -> 0.00 | F134: =SUM(F135) -> 0.00 | H134: =SUM(H135) -> 0.00 | I134: =SUM(I135) -> 0.00
A135: -закупка медикаментов, перевязочных средств (расходных материалов) | B135: П341006 | C135: 0.00
A136: Увеличение стоимости продуктов питания | B136: 342 | C136: 0.00 | D136: =SUM(D137) -> 0.00 | E136: =SUM(E137) -> 0.00 | F136: =SUM(F137) -> 0.00 | H136: =SUM(H137) -> 0.00 | I136: =SUM(I137) -> 0.00
A137: --продукты пиания (за исключением молока и молочных продуктов) | B137: П342005 | C137: 0.00 | H137: =SUM(H139:H140) -> 0.00
A138: Увеличение стоимости ГСМ | B138: 343 | C138: 0.00 | D138: =SUM(D139:D140) -> 0.00 | E138: 0.00 | F138: 0.00 | G138: 0.00 | H138: 0.00 | I138: 0.00
A139: - ГСМ | B139: П343001 | C139: 0.00
A140: -моторные масла и спец.смазка | B140: П343015 | C140: 0.00
A141: Увеличение стомости строительных материалов | B141: 344 | C141: 0.00 | D141: =SUM(D142) -> 0.00 | E141: 0.00 | F141: 0.00 | G141: 0.00 | H141: =SUM(H142) -> 0.00 | I141: 0.00
A142: - прочие расходы на увеличение стоимости строительных материалов | B142: Н344099 | C142: 0.00
A143: Увеличение стомости мягкого инвентаря | B143: 345 | C143: 10,000.00 | D143: =SUM(D144) -> 0.00 | E143: 0.00 | F143: 0.00 | G143: 0.00 | H143: =SUM(H144) -> 10,000.00 | I143: 0.00
A144: - закупка мягкого инвентаря, одежды, обмундирования | B144: П345002 | C144: 10,000.00 | H144: 10,000.00
A145: Увеличение стоимости прочих оборотных запасов (материалов) | B145: 346 | C145: 16,434.10 | D145: =SUM(D146:D152) -> 0.00 | E145: 0.00 | F145: 0.00 | G145: 0.00 | H145: 16,434.10 | I145: 0.00
A146: - закупка запчастей к оборудованию | B146: П346003 | C146: 0.00
A147: - закупка материалов, используемых в процессе обучения | B147: П346004 | C147: 0.00
A148: -закупка запчастей к транспортным средствам | B148: П346013 | C148: 0.00
A149: -приобретение автошин | B149: П346014 | C149: 0.00
A150: - приобретение канцелярских, хозтоваров, расходных материалов | B150: П346017 | C150: 16,434.10 | H150: 16,434.10
A151: -прочие первоочередные расходы по увеличению стоимости прочих оборотных запасов | B151: П346098 | C151: 0.00
A152: -прочие расходы по увеличению стоимости прочих оборотных запасов | B152: Н346099 | C152: 0.00
A153: Увеличение стоимости прочих материальных запасов однократного применения | B153: 349 | C153: 0.00 | D153: =SUM(D154:D155) -> 0.00 | E153: =SUM(E154:E155) -> 0.00 | F153: =SUM(F154:F155) -> 0.00 | H153: =SUM(H154:H155) -> 0.00 | I153: =SUM(I154:I155) -> 0.00
A154: - расходы по увеличению стоимости прочих материальных запасов однократного применения | B154: П349098 | C154: 0.00
A155: - прочие расходы по увеличению стоимости прочих материальных запасов, применяемых в медицинских целях, однократного применения | B155: Н349099 | C155: 0.00
A156: Всего расходов | C156: =SUM(D156:I156) -> 1,497,591.78 | D156: =D138+D121+D116+D92+D68+D71+D63+D61+D55+D52+D50+D47+D119+D125+D127+D129+D136+D153+D134+D141+D143+D145+D113 -> 17,591.78 | E156: 0.00 | F156: 0.00 | G156: 0.00 | H156: 1,000,000.00 | I156: 480,000.00
G157: =SUM(D156:G156) -> 17,591.78 | I157: =SUM(H156:I156) -> 1,480,000.00
A158: Заведующий | F158: Р.Т.Гусманова
A159: Начальник планово-экономической группы | F159: Н.В.Трофимова
A160: Главный бухгалтер | F160: О.Н.Хакимуллина

Sheet Лист2

Sheet Лист3
